[Event "*** Titled Tuesday Blitz"]
[Site "Chess.com"]
[Date "2021.03.02"]
[Round "6"]
[White "Bigfish1995"]
[Black "13MiRacLe"]
[Result "1-0"]
[WhiteElo "3126"]
[BlackElo "2743"]
[TimeControl "180+1"]
[EndTime "11:07:30 PST"]
[Termination "Bigfish1995 won by resignation"]

1. e4 {[%clk 0:02:53.7]} 1... e5 {[%clk 0:02:59.9]} 2. Nf3 {[%clk 0:02:52.4]}
2... Nc6 {[%clk 0:03:00.5]} 3. Bc4 {[%clk 0:02:52.7]} 3... Nf6 {[%clk
0:02:59.7]} 4. d3 {[%clk 0:02:52.5]} 4... Bc5 {[%clk 0:03:00]} 5. Bg5 {[%clk
0:02:47.5]} 5... h6 {[%clk 0:02:58.7]} 6. Bh4 {[%clk 0:02:47.4]} 6... d6 {[%clk
0:02:59.1]} 7. h3 {[%clk 0:02:46]} 7... a6 {[%clk 0:02:59]} 8. c3 {[%clk
0:02:45.1]} 8... Ba7 {[%clk 0:02:59.1]} 9. Bb3 {[%clk 0:02:43.9]} 9... g5 {[%clk
0:02:50.3]} 10. Bg3 {[%clk 0:02:43.9]} 10... O-O {[%clk 0:02:48]} 11. Nbd2
{[%clk 0:02:42.3]} 11... Na5 {[%clk 0:02:37.7]} 12. Bc2 {[%clk 0:02:38.3]} 12...
Nh5 {[%clk 0:02:38.2]} 13. Nh2 {[%clk 0:02:25.3]} 13... Nxg3 {[%clk 0:02:18.8]}
14. fxg3 {[%clk 0:02:24.9]} 14... f5 {[%clk 0:02:19.5]} 15. Qh5 {[%clk 0:02:20]}
15... Kg7 {[%clk 0:02:13.7]} 16. O-O-O {[%clk 0:02:18.8]} 16... Qe8 {[%clk
0:02:01.9]} 17. Qxe8 {[%clk 0:02:04.7]} 17... Rxe8 {[%clk 0:02:02.8]} 18. g4
{[%clk 0:02:05.3]} 18... fxg4 {[%clk 0:01:52]} 19. hxg4 {[%clk 0:01:57.1]} 19...
Be6 {[%clk 0:01:19.1]} 20. b4 {[%clk 0:01:52.1]} 20... Nc6 {[%clk 0:01:19.2]}
21. Bb3 {[%clk 0:01:52.6]} 21... Bd7 {[%clk 0:01:15.3]} 22. Ndf1 {[%clk
0:01:51.5]} 22... Bf2 {[%clk 0:01:02.4]} 23. Kd2 {[%clk 0:01:44.6]} 23... Rf8
{[%clk 0:01:02.3]} 24. Ne3 {[%clk 0:01:34.4]} 24... Bxe3+ {[%clk 0:00:57.4]} 25.
Kxe3 {[%clk 0:01:35.3]} 25... Ne7 {[%clk 0:00:54.7]} 26. Rdf1 {[%clk 0:01:30]}
26... Ng6 {[%clk 0:00:53.2]} 27. Rf5 {[%clk 0:01:26.9]} 27... Bxf5 {[%clk
0:00:46.7]} 28. gxf5 {[%clk 0:01:25.8]} 28... Nf4 {[%clk 0:00:47.2]} 29. g3
{[%clk 0:01:24.6]} 29... Nh5 {[%clk 0:00:41.7]} 30. Ng4 {[%clk 0:01:11.5]} 30...
Nf6 {[%clk 0:00:41.6]} 31. Kf3 {[%clk 0:01:06.8]} 31... h5 {[%clk 0:00:27.7]}
32. Ne3 {[%clk 0:01:04.3]} 32... g4+ {[%clk 0:00:22.8]} 33. Ke2 {[%clk 0:01:03]}
33... Kh6 {[%clk 0:00:18.3]} 34. Ng2 {[%clk 0:00:59.9]} 34... Kg5 {[%clk
0:00:17]} 35. Nh4 {[%clk 0:01:00.3]} 35... Rad8 {[%clk 0:00:07.7]} 36. Ng6
{[%clk 0:01:00.5]} 36... c6 {[%clk 0:00:05.9]} 37. Ke3 {[%clk 0:00:54.9]} 37...
d5 {[%clk 0:00:06.2]} 38. Nxe5 {[%clk 0:00:48.9]} 38... Rde8 {[%clk 0:00:06.7]}
39. Ng6 {[%clk 0:00:48.4]} 39... dxe4 {[%clk 0:00:06.1]} 40. Nxf8 {[%clk
0:00:47.6]} 40... Rxf8 {[%clk 0:00:06.3]} 41. dxe4 {[%clk 0:00:48.2]} 41... Re8
{[%clk 0:00:06.9]} 42. Be6 {[%clk 0:00:48.6]} 42... Rh8 {[%clk 0:00:04.4]} 43.
e5 {[%clk 0:00:47.6]} 43... Nd5+ {[%clk 0:00:04.7]} 44. Bxd5 {[%clk 0:00:47.6]}
44... cxd5 {[%clk 0:00:05.6]} 45. f6 {[%clk 0:00:48.1]} 45... Kf5 {[%clk
0:00:04.2]} 46. Kd4 {[%clk 0:00:47.1]} 46... Ke6 {[%clk 0:00:04.8]} 47. Rf1
{[%clk 0:00:45.9]} 47... b6 {[%clk 0:00:03.9]} 48. f7 {[%clk 0:00:44.2]} 48...
Ke7 {[%clk 0:00:03.4]} 49. Kxd5 {[%clk 0:00:43.5]} 49... Kf8 {[%clk 0:00:03.7]}
50. e6 {[%clk 0:00:43.5]} 50... Ke7 {[%clk 0:00:03]} 51. Ke5 {[%clk 0:00:43.3]}
51... h4 {[%clk 0:00:03.1]} 52. gxh4 {[%clk 0:00:41.1]} 52... Rh5+ {[%clk
0:00:03.7]} 53. Kf4 {[%clk 0:00:40.9]} 53... Rxh4 {[%clk 0:00:03.5]} 54. f8=Q+
{[%clk 0:00:41.1]} 54... Kxf8 {[%clk 0:00:04.1]} 55. Kg3+ {[%clk 0:00:41.7]}
55... Ke7 {[%clk 0:00:04.4]} 56. Kxh4 {[%clk 0:00:42.6]} 1-0

[Event "*** Titled Tuesday Blitz"]
[Site "Chess.com"]
[Date "2021.03.02"]
[Round "6"]
[White "Duhless"]
[Black "rquery98"]
[Result "1-0"]
[WhiteElo "3061"]
[BlackElo "2632"]
[TimeControl "180+1"]
[EndTime "11:07:31 PST"]
[Termination "Duhless won on time"]

1. d4 {[%clk 0:03:00.9]} 1... Nf6 {[%clk 0:02:56.5]} 2. Nf3 {[%clk 0:03:01.8]}
2... g6 {[%clk 0:02:56.8]} 3. Bg5 {[%clk 0:03:00.7]} 3... Bg7 {[%clk 0:02:56.8]}
4. Nbd2 {[%clk 0:03:01.3]} 4... O-O {[%clk 0:02:56.5]} 5. e4 {[%clk 0:03:01.4]}
5... d5 {[%clk 0:02:56.7]} 6. exd5 {[%clk 0:03:00.5]} 6... Nxd5 {[%clk 0:02:56]}
7. c3 {[%clk 0:02:58.9]} 7... h6 {[%clk 0:02:53.8]} 8. Bh4 {[%clk 0:02:57.2]}
8... c5 {[%clk 0:02:54.1]} 9. dxc5 {[%clk 0:02:56]} 9... Qc7 {[%clk 0:02:50.7]}
10. Bg3 {[%clk 0:02:39.4]} 10... Qxc5 {[%clk 0:02:31.6]} 11. Nb3 {[%clk
0:02:39.2]} 11... Qc6 {[%clk 0:02:28.8]} 12. Be2 {[%clk 0:02:39.1]} 12... Nb6
{[%clk 0:02:13.8]} 13. O-O {[%clk 0:02:36]} 13... Na6 {[%clk 0:02:08.6]} 14. Re1
{[%clk 0:02:32.4]} 14... Bg4 {[%clk 0:01:59.2]} 15. Nfd4 {[%clk 0:02:31.1]}
15... Bxe2 {[%clk 0:01:55.6]} 16. Nxc6 {[%clk 0:02:30.7]} 16... Bxd1 {[%clk
0:01:56.5]} 17. Nxe7+ {[%clk 0:02:30.9]} 17... Kh7 {[%clk 0:01:57.2]} 18. Raxd1
{[%clk 0:02:31.1]} 18... Rfe8 {[%clk 0:01:46.4]} 19. Kf1 {[%clk 0:02:23.9]}
19... Rad8 {[%clk 0:01:28.5]} 20. Rxd8 {[%clk 0:01:38.2]} 20... Rxd8 {[%clk
0:01:29.4]} 21. Bh4 {[%clk 0:01:38.6]} 21... Rd7 {[%clk 0:01:15.7]} 22. g4
{[%clk 0:01:16.8]} 22... Nc4 {[%clk 0:01:00.5]} 23. Nc8 {[%clk 0:01:09.2]} 23...
Nxb2 {[%clk 0:00:49.7]} 24. Nxa7 {[%clk 0:01:04.4]} 24... Bxc3 {[%clk
0:00:50.1]} 25. Re7 {[%clk 0:01:01.4]} 25... Rxe7 {[%clk 0:00:46.1]} 26. Bxe7
{[%clk 0:01:02.3]} 26... Nc4 {[%clk 0:00:36.8]} 27. Nb5 {[%clk 0:00:58.4]} 27...
Be5 {[%clk 0:00:32.6]} 28. h3 {[%clk 0:00:55.9]} 28... Nc7 {[%clk 0:00:25.2]}
29. Nxc7 {[%clk 0:00:53.4]} 29... Bxc7 {[%clk 0:00:26.1]} 30. Ke2 {[%clk
0:00:53.2]} 30... Kg7 {[%clk 0:00:20.6]} 31. Kd3 {[%clk 0:00:52.3]} 31... Ne5+
{[%clk 0:00:21.3]} 32. Ke4 {[%clk 0:00:52]} 32... f6 {[%clk 0:00:18.8]} 33. Bc5
{[%clk 0:00:38.7]} 33... Kf7 {[%clk 0:00:18]} 34. Be3 {[%clk 0:00:38.6]} 34...
Nc4 {[%clk 0:00:17.5]} 35. Bxh6 {[%clk 0:00:31]} 35... g5 {[%clk 0:00:14.8]} 36.
Nc5 {[%clk 0:00:27.2]} 36... b5 {[%clk 0:00:08.7]} 37. Kd5 {[%clk 0:00:23.4]}
37... Bb6 {[%clk 0:00:07.5]} 38. Ne4 {[%clk 0:00:21.4]} 38... Ne5 {[%clk
0:00:05.8]} 39. f4 {[%clk 0:00:20.2]} 39... gxf4 {[%clk 0:00:04.9]} 40. Bxf4
{[%clk 0:00:21.1]} 40... Ng6 {[%clk 0:00:03.2]} 41. Bd6 {[%clk 0:00:18.2]} 41...
Nh4 {[%clk 0:00:02.4]} 42. Kc6 {[%clk 0:00:16]} 42... Bd8 {[%clk 0:00:02.5]} 43.
Bg3 {[%clk 0:00:15.3]} 43... Ng6 {[%clk 0:00:01.2]} 44. Nd6+ {[%clk 0:00:14]}
44... Ke6 {[%clk 0:00:01.4]} 45. Nf5 {[%clk 0:00:14.4]} 1-0

[Event "*** Titled Tuesday Blitz"]
[Site "Chess.com"]
[Date "2021.03.02"]
[Round "6"]
[White "eCztery"]
[Black "volunteers1998"]
[Result "1-0"]
[WhiteElo "2387"]
[BlackElo "2155"]
[TimeControl "180+1"]
[EndTime "11:07:31 PST"]
[Termination "eCztery won on time"]

1. d4 {[%clk 0:02:58.5]} 1... f5 {[%clk 0:02:58.7]} 2. Bg5 {[%clk 0:02:55.6]}
2... h6 {[%clk 0:02:57.2]} 3. Bh4 {[%clk 0:02:55.3]} 3... c5 {[%clk 0:02:53.1]}
4. e3 {[%clk 0:02:51]} 4... Qb6 {[%clk 0:02:48]} 5. Nc3 {[%clk 0:02:40.5]} 5...
cxd4 {[%clk 0:02:45]} 6. exd4 {[%clk 0:02:37.2]} 6... Qe6+ {[%clk 0:02:36.3]} 7.
Be2 {[%clk 0:02:23]} 7... g5 {[%clk 0:02:33.2]} 8. d5 {[%clk 0:02:22.7]} 8...
Qf6 {[%clk 0:02:22.9]} 9. Nb5 {[%clk 0:02:03.7]} 9... Na6 {[%clk 0:02:14.2]} 10.
Nf3 {[%clk 0:01:29.8]} 10... gxh4 {[%clk 0:02:09.4]} 11. O-O {[%clk 0:01:29.5]}
11... Bg7 {[%clk 0:02:01.8]} 12. Bc4 {[%clk 0:01:21.7]} 12... d6 {[%clk
0:01:57.7]} 13. Re1 {[%clk 0:01:12.8]} 13... Bd7 {[%clk 0:01:51.3]} 14. Nfd4
{[%clk 0:01:12.8]} 14... Kf7 {[%clk 0:01:43]} 15. Qh5+ {[%clk 0:01:03.1]} 15...
Qg6 {[%clk 0:01:38.8]} 16. Qxh4 {[%clk 0:01:01.2]} 16... Nf6 {[%clk 0:01:34.1]}
17. Ne6 {[%clk 0:00:44]} 17... Bxe6 {[%clk 0:01:25.9]} 18. Rxe6 {[%clk
0:00:44.9]} 18... Nc5 {[%clk 0:01:18.8]} 19. Re3 {[%clk 0:00:39.2]} 19... Qg4
{[%clk 0:01:12.6]} 20. Qxg4 {[%clk 0:00:23.4]} 20... Nxg4 {[%clk 0:01:13.2]} 21.
Rf3 {[%clk 0:00:23.7]} 21... Kg6 {[%clk 0:01:04.8]} 22. Re1 {[%clk 0:00:23.8]}
22... Ne5 {[%clk 0:00:57.3]} 23. Rg3+ {[%clk 0:00:22.1]} 23... Kh7 {[%clk
0:00:57.8]} 24. Bd3 {[%clk 0:00:16.4]} 24... Ncxd3 {[%clk 0:00:54.5]} 25. cxd3
{[%clk 0:00:17.3]} 25... a6 {[%clk 0:00:49.2]} 26. Nc7 {[%clk 0:00:17.4]} 26...
Rac8 {[%clk 0:00:45.9]} 27. Ne6 {[%clk 0:00:18]} 27... Bf6 {[%clk 0:00:41.7]}
28. d4 {[%clk 0:00:18.5]} 28... Nf7 {[%clk 0:00:30.5]} 29. Nf4 {[%clk
0:00:18.4]} 29... Rc2 {[%clk 0:00:25.2]} 30. Nh5 {[%clk 0:00:18.6]} 30... Rhc8
{[%clk 0:00:22.2]} 31. h3 {[%clk 0:00:18.9]} 31... Rc1 {[%clk 0:00:20.4]} 32.
Kf1 {[%clk 0:00:18.4]} 32... Rxe1+ {[%clk 0:00:19.4]} 33. Kxe1 {[%clk
0:00:19.3]} 33... Bxd4 {[%clk 0:00:16.5]} 34. Rd3 {[%clk 0:00:18.8]} 34... Bxb2
{[%clk 0:00:14]} 35. Rf3 {[%clk 0:00:18.6]} 35... Bc3+ {[%clk 0:00:14.4]} 36.
Ke2 {[%clk 0:00:17.7]} 36... Ne5 {[%clk 0:00:13.6]} 37. Rxf5 {[%clk 0:00:17.5]}
37... Kg6 {[%clk 0:00:12.9]} 38. g4 {[%clk 0:00:18.1]} 38... Nf7 {[%clk
0:00:11.2]} 39. Nf4+ {[%clk 0:00:18]} 39... Kg7 {[%clk 0:00:09.6]} 40. Ne6+
{[%clk 0:00:18]} 40... Kg8 {[%clk 0:00:09.5]} 41. f4 {[%clk 0:00:18.3]} 41...
Bf6 {[%clk 0:00:07.5]} 42. g5 {[%clk 0:00:17.1]} 42... hxg5 {[%clk 0:00:06.5]}
43. fxg5 {[%clk 0:00:18]} 43... Be5 {[%clk 0:00:05.3]} 44. g6 {[%clk 0:00:18.2]}
44... Nh6 {[%clk 0:00:04.3]} 45. Rh5 {[%clk 0:00:18.2]} 45... Bg7 {[%clk
0:00:01.3]} 46. h4 {[%clk 0:00:18.7]} 1-0

[Event "*** Titled Tuesday Blitz"]
[Site "Chess.com"]
[Date "2021.03.02"]
[Round "6"]
[White "BrandonJacobson"]
[Black "Rap_woyska"]
[Result "0-1"]
[WhiteElo "2779"]
[BlackElo "2580"]
[TimeControl "180+1"]
[EndTime "11:07:34 PST"]
[Termination "Rap_woyska won by resignation"]

1. d4 {[%clk 0:03:00.9]} 1... Nf6 {[%clk 0:02:59.5]} 2. c4 {[%clk 0:03:01.8]}
2... c6 {[%clk 0:02:59.7]} 3. Nc3 {[%clk 0:03:01.6]} 3... d5 {[%clk 0:03:00.6]}
4. cxd5 {[%clk 0:03:02.5]} 4... cxd5 {[%clk 0:03:00.7]} 5. Bf4 {[%clk
0:03:03.2]} 5... Nc6 {[%clk 0:03:01.3]} 6. e3 {[%clk 0:03:04]} 6... a6 {[%clk
0:03:01.8]} 7. Be2 {[%clk 0:03:04.6]} 7... Bf5 {[%clk 0:02:50]} 8. Nf3 {[%clk
0:03:05.2]} 8... e6 {[%clk 0:02:49.5]} 9. Qb3 {[%clk 0:03:05.8]} 9... Na5 {[%clk
0:02:43.7]} 10. Qa4+ {[%clk 0:03:06.2]} 10... Nc6 {[%clk 0:02:35.5]} 11. Ne5
{[%clk 0:03:06.2]} 11... Qb6 {[%clk 0:02:29.9]} 12. O-O {[%clk 0:02:40.6]} 12...
Be7 {[%clk 0:02:23.3]} 13. Nxc6 {[%clk 0:02:40.6]} 13... bxc6 {[%clk 0:02:18.1]}
14. Rfc1 {[%clk 0:02:40.6]} 14... O-O {[%clk 0:02:17.1]} 15. Qd1 {[%clk
0:02:06.6]} 15... Nd7 {[%clk 0:02:10.7]} 16. Na4 {[%clk 0:02:06.5]} 16... Qb7
{[%clk 0:02:10.6]} 17. b3 {[%clk 0:01:59.6]} 17... Rfc8 {[%clk 0:02:08.7]} 18.
Bd3 {[%clk 0:01:55.9]} 18... Bxd3 {[%clk 0:02:04.2]} 19. Qxd3 {[%clk 0:01:56.8]}
19... c5 {[%clk 0:02:03.7]} 20. dxc5 {[%clk 0:01:56.9]} 20... Nxc5 {[%clk
0:02:00.9]} 21. Nxc5 {[%clk 0:01:57.8]} 21... Bxc5 {[%clk 0:01:57.2]} 22. Rc2
{[%clk 0:01:57]} 22... Ba3 {[%clk 0:01:55.6]} 23. Be5 {[%clk 0:01:49.8]} 23...
Rxc2 {[%clk 0:01:52]} 24. Qxc2 {[%clk 0:01:50.7]} 24... Rc8 {[%clk 0:01:52.2]}
25. Qe2 {[%clk 0:01:48.9]} 25... f6 {[%clk 0:01:48.4]} 26. Bb2 {[%clk
0:01:48.6]} 26... Bxb2 {[%clk 0:01:43.8]} 27. Qxb2 {[%clk 0:01:49.5]} 27... Qc6
{[%clk 0:01:43.4]} 28. Qa3 {[%clk 0:01:47.4]} 28... Kf7 {[%clk 0:01:40.5]} 29.
h3 {[%clk 0:01:46.7]} 29... Qc3 {[%clk 0:01:35.7]} 30. Rf1 {[%clk 0:01:44.1]}
30... a5 {[%clk 0:01:35.6]} 31. Qd6 {[%clk 0:01:42.5]} 31... Qc6 {[%clk
0:01:30]} 32. Qa3 {[%clk 0:01:41.9]} 32... Qc5 {[%clk 0:01:29.2]} 33. Qa4 {[%clk
0:01:42.4]} 33... Rc7 {[%clk 0:01:27.9]} 34. Rd1 {[%clk 0:01:32.9]} 34... Qc2
{[%clk 0:01:25.7]} 35. Rd4 {[%clk 0:01:31.1]} 35... Qc1+ {[%clk 0:01:25.1]} 36.
Kh2 {[%clk 0:01:31.1]} 36... Qc5 {[%clk 0:01:25.1]} 37. a3 {[%clk 0:01:12.6]}
37... g5 {[%clk 0:00:59.4]} 38. b4 {[%clk 0:01:09.1]} 38... axb4 {[%clk
0:00:59.2]} 39. axb4 {[%clk 0:01:10]} 39... Qc1 {[%clk 0:00:55.3]} 40. Qa8
{[%clk 0:01:02.3]} 40... Rc8 {[%clk 0:00:48.2]} 41. Qb7+ {[%clk 0:01:00]} 41...
Qc7+ {[%clk 0:00:48.9]} 42. Qxc7+ {[%clk 0:00:59]} 42... Rxc7 {[%clk 0:00:49.8]}
43. Kg3 {[%clk 0:00:46.4]} 43... h5 {[%clk 0:00:38.7]} 44. h4 {[%clk 0:00:45.1]}
44... g4 {[%clk 0:00:36.3]} 45. Rd2 {[%clk 0:00:42.4]} 45... Ke7 {[%clk
0:00:31.7]} 46. f3 {[%clk 0:00:41.5]} 46... gxf3 {[%clk 0:00:29.3]} 47. gxf3
{[%clk 0:00:40.3]} 47... Kd6 {[%clk 0:00:30.2]} 48. Kf4 {[%clk 0:00:36.2]} 48...
Rc4+ {[%clk 0:00:29.7]} 49. e4 {[%clk 0:00:36.2]} 49... Rxb4 {[%clk 0:00:28.3]}
50. Rg2 {[%clk 0:00:37]} 50... dxe4 {[%clk 0:00:26.4]} 51. fxe4 {[%clk
0:00:37.9]} 51... f5 {[%clk 0:00:26.9]} 52. Rd2+ {[%clk 0:00:31.6]} 52... Ke7
{[%clk 0:00:27]} 53. Re2 {[%clk 0:00:32.2]} 53... Rxe4+ {[%clk 0:00:23.7]} 54.
Rxe4 {[%clk 0:00:33.1]} 54... fxe4 {[%clk 0:00:24.3]} 55. Kxe4 {[%clk 0:00:34]}
55... Kf6 {[%clk 0:00:24.3]} 56. Kf4 {[%clk 0:00:34.9]} 56... e5+ {[%clk
0:00:24.8]} 57. Ke4 {[%clk 0:00:35.8]} 57... Ke6 {[%clk 0:00:25.7]} 58. Ke3
{[%clk 0:00:36.7]} 58... Kf5 {[%clk 0:00:26.3]} 59. Kf3 {[%clk 0:00:37.6]} 59...
e4+ {[%clk 0:00:24.2]} 60. Ke3 {[%clk 0:00:38.1]} 60... Ke5 {[%clk 0:00:24.8]}
61. Ke2 {[%clk 0:00:38.7]} 61... Kf4 {[%clk 0:00:25.3]} 62. Kf2 {[%clk
0:00:39.5]} 62... Kg4 {[%clk 0:00:24]} 63. Ke3 {[%clk 0:00:39.7]} 63... Kxh4
{[%clk 0:00:24.4]} 0-1

[Event "*** Titled Tuesday Blitz"]
[Site "Chess.com"]
[Date "2021.03.02"]
[Round "6"]
[White "kuba2006"]
[Black "Shahaliyev"]
[Result "1-0"]
[WhiteElo "2385"]
[BlackElo "2682"]
[TimeControl "180+1"]
[EndTime "11:07:35 PST"]
[Termination "kuba2006 won by resignation"]

1. b3 {[%clk 0:03:00.9]} 1... e5 {[%clk 0:02:59.8]} 2. Bb2 {[%clk 0:03:01.4]}
2... Nc6 {[%clk 0:02:59.4]} 3. e3 {[%clk 0:03:01]} 3... Nf6 {[%clk 0:02:59]} 4.
Bb5 {[%clk 0:03:00.4]} 4... d6 {[%clk 0:02:57.2]} 5. Nf3 {[%clk 0:02:55.3]} 5...
Bd7 {[%clk 0:02:56.6]} 6. O-O {[%clk 0:02:53.7]} 6... Be7 {[%clk 0:02:54.6]} 7.
d4 {[%clk 0:02:48.9]} 7... exd4 {[%clk 0:02:53.4]} 8. Nxd4 {[%clk 0:02:48.6]}
8... Nxd4 {[%clk 0:02:53.7]} 9. Bxd7+ {[%clk 0:02:49]} 9... Qxd7 {[%clk
0:02:54.6]} 10. Qxd4 {[%clk 0:02:43.4]} 10... O-O {[%clk 0:02:55.5]} 11. c4
{[%clk 0:02:41.9]} 11... Qg4 {[%clk 0:02:55.5]} 12. Nd2 {[%clk 0:02:33.8]} 12...
Qxd4 {[%clk 0:02:47.4]} 13. Bxd4 {[%clk 0:02:34.7]} 13... Nd7 {[%clk 0:02:47.8]}
14. e4 {[%clk 0:02:30.3]} 14... Bf6 {[%clk 0:02:45.8]} 15. Bxf6 {[%clk
0:02:30.1]} 15... Nxf6 {[%clk 0:02:46.7]} 16. f4 {[%clk 0:02:29.8]} 16... Rfe8
{[%clk 0:02:46.7]} 17. Rae1 {[%clk 0:02:29.3]} 17... Nd7 {[%clk 0:02:46.1]} 18.
Kf2 {[%clk 0:02:24.3]} 18... Nc5 {[%clk 0:02:45.7]} 19. Re3 {[%clk 0:02:20.7]}
19... a5 {[%clk 0:02:43.6]} 20. Kf3 {[%clk 0:02:13.4]} 20... Re7 {[%clk
0:02:43.1]} 21. Rfe1 {[%clk 0:02:12.2]} 21... Ne6 {[%clk 0:02:38]} 22. Rd3
{[%clk 0:02:00.3]} 22... Nc5 {[%clk 0:02:25.3]} 23. Rd5 {[%clk 0:01:47.5]} 23...
Rae8 {[%clk 0:02:19.2]} 24. a3 {[%clk 0:01:26.1]} 24... b6 {[%clk 0:02:10]} 25.
b4 {[%clk 0:01:17.2]} 25... axb4 {[%clk 0:02:10.9]} 26. axb4 {[%clk 0:01:18.1]}
26... Na6 {[%clk 0:02:09.6]} 27. Rb1 {[%clk 0:01:11.4]} 27... Nb8 {[%clk
0:02:09.4]} 28. c5 {[%clk 0:01:09.3]} 28... dxc5 {[%clk 0:01:50.4]} 29. bxc5
{[%clk 0:01:10.2]} 29... c6 {[%clk 0:01:41.9]} 30. Rd6 {[%clk 0:00:46.2]} 30...
b5 {[%clk 0:01:22.4]} 31. Ra1 {[%clk 0:00:39.4]} 31... g5 {[%clk 0:01:05.5]} 32.
g3 {[%clk 0:00:26.7]} 32... gxf4 {[%clk 0:00:55.6]} 33. gxf4 {[%clk 0:00:27.6]}
33... Rb7 {[%clk 0:00:55.7]} 34. e5 {[%clk 0:00:22.2]} 34... b4 {[%clk
0:00:53.5]} 35. Rb1 {[%clk 0:00:22.3]} 35... Nd7 {[%clk 0:00:32.4]} 36. Ne4
{[%clk 0:00:20.1]} 36... Kf8 {[%clk 0:00:28.6]} 37. Rxc6 {[%clk 0:00:18.5]}
37... Ra8 {[%clk 0:00:22.7]} 38. Nd6 {[%clk 0:00:18]} 38... Rbb8 {[%clk
0:00:14.2]} 39. Rc7 {[%clk 0:00:17.9]} 39... Ke7 {[%clk 0:00:13.9]} 40. c6
{[%clk 0:00:17.4]} 40... Ra3+ {[%clk 0:00:13.9]} 41. Ke4 {[%clk 0:00:16]} 41...
f5+ {[%clk 0:00:14]} 42. Kd4 {[%clk 0:00:14.3]} 42... Ke6 {[%clk 0:00:11.7]} 43.
Rxd7 {[%clk 0:00:14.1]} 43... b3 {[%clk 0:00:12.3]} 44. Nc4 {[%clk 0:00:12.1]}
44... Ra4 {[%clk 0:00:12.2]} 45. Rd6+ {[%clk 0:00:12.3]} 45... Ke7 {[%clk
0:00:12.3]} 46. Kc3 {[%clk 0:00:12.4]} 1-0

[Event "*** Titled Tuesday Blitz"]
[Site "Chess.com"]
[Date "2021.03.02"]
[Round "6"]
[White "PaulfromSPb"]
[Black "KuzubovYuriy"]
[Result "0-1"]
[WhiteElo "2720"]
[BlackElo "2925"]
[TimeControl "180+1"]
[EndTime "11:07:36 PST"]
[Termination "KuzubovYuriy won by checkmate"]

1. e4 {[%clk 0:03:00.9]} 1... c5 {[%clk 0:03:00]} 2. Ne2 {[%clk 0:03:00.6]} 2...
Nc6 {[%clk 0:02:59.4]} 3. g3 {[%clk 0:02:59.5]} 3... d5 {[%clk 0:02:57.1]} 4.
Bg2 {[%clk 0:02:59.3]} 4... dxe4 {[%clk 0:02:55.9]} 5. Bxe4 {[%clk 0:03:00.2]}
5... Nf6 {[%clk 0:02:55.3]} 6. Bg2 {[%clk 0:03:00.1]} 6... g6 {[%clk 0:02:48.9]}
7. Nbc3 {[%clk 0:02:52]} 7... Bg7 {[%clk 0:02:48.5]} 8. d3 {[%clk 0:02:48.8]}
8... O-O {[%clk 0:02:48.2]} 9. h3 {[%clk 0:02:46.3]} 9... Qc7 {[%clk 0:02:34.4]}
10. O-O {[%clk 0:02:44.9]} 10... Rd8 {[%clk 0:02:23.4]} 11. Bf4 {[%clk
0:02:36.9]} 11... Qd7 {[%clk 0:02:21.6]} 12. g4 {[%clk 0:02:22.8]} 12... b6
{[%clk 0:02:19.5]} 13. Ng3 {[%clk 0:02:15.5]} 13... Bb7 {[%clk 0:02:16.9]} 14.
Re1 {[%clk 0:02:13.9]} 14... Nd4 {[%clk 0:02:13.7]} 15. Nge4 {[%clk 0:02:09.4]}
15... Re8 {[%clk 0:02:05.2]} 16. Bg3 {[%clk 0:01:55.8]} 16... Rad8 {[%clk
0:02:03.9]} 17. Qd2 {[%clk 0:01:49.9]} 17... Nxe4 {[%clk 0:02:02.1]} 18. Nxe4
{[%clk 0:01:49.4]} 18... f5 {[%clk 0:01:51.9]} 19. c3 {[%clk 0:01:30.1]} 19...
fxe4 {[%clk 0:01:46.6]} 20. cxd4 {[%clk 0:01:29.9]} 20... Qxd4 {[%clk
0:01:39.8]} 21. Rad1 {[%clk 0:01:10.5]} 21... Qxb2 {[%clk 0:01:36.6]} 22. Qf4
{[%clk 0:00:57]} 22... Qxa2 {[%clk 0:01:23.4]} 23. dxe4 {[%clk 0:00:55.8]} 23...
Rxd1 {[%clk 0:01:15.7]} 24. Rxd1 {[%clk 0:00:56.7]} 24... Bd4 {[%clk 0:01:12.8]}
25. Qc7 {[%clk 0:00:55]} 25... Ba8 {[%clk 0:01:07.5]} 26. Qd7 {[%clk 0:00:47]}
26... Rf8 {[%clk 0:00:58.7]} 27. Rxd4 {[%clk 0:00:46.8]} 27... cxd4 {[%clk
0:00:57.7]} 28. Qxd4 {[%clk 0:00:45.1]} 28... Qe6 {[%clk 0:00:49.2]} 29. Bh4
{[%clk 0:00:37.7]} 29... Rc8 {[%clk 0:00:45.5]} 30. Qe3 {[%clk 0:00:35.1]} 30...
a5 {[%clk 0:00:44.3]} 31. Qa3 {[%clk 0:00:30.8]} 31... Qd6 {[%clk 0:00:37.5]}
32. Qb3+ {[%clk 0:00:29.7]} 32... e6 {[%clk 0:00:37.1]} 33. Bf6 {[%clk
0:00:28.6]} 33... Rc1+ {[%clk 0:00:36.4]} 34. Bf1 {[%clk 0:00:28.7]} 34... Bxe4
{[%clk 0:00:32.7]} 35. Bb2 {[%clk 0:00:11.4]} 35... Rb1 {[%clk 0:00:23.4]} 36.
Qc3 {[%clk 0:00:10.9]} 36... Rxb2 {[%clk 0:00:23]} 37. Qxb2 {[%clk 0:00:10.6]}
37... a4 {[%clk 0:00:22.3]} 38. Qe2 {[%clk 0:00:09]} 38... Bd5 {[%clk 0:00:22]}
39. Qa6 {[%clk 0:00:08.7]} 39... a3 {[%clk 0:00:22]} 40. Qc8+ {[%clk 0:00:08.8]}
40... Qf8 {[%clk 0:00:22.1]} 41. Qa6 {[%clk 0:00:08.9]} 41... a2 {[%clk
0:00:22.4]} 42. Bg2 {[%clk 0:00:08.9]} 42... Bc4 {[%clk 0:00:20.3]} 43. Qa7
{[%clk 0:00:07.1]} 43... Qf6 {[%clk 0:00:20]} 44. Qa8+ {[%clk 0:00:04.9]} 44...
Kg7 {[%clk 0:00:20.3]} 45. Qa7+ {[%clk 0:00:05]} 45... Kh6 {[%clk 0:00:20.3]}
46. g5+ {[%clk 0:00:05.5]} 46... Kxg5 {[%clk 0:00:20.2]} 47. f4+ {[%clk
0:00:05.7]} 47... Kh6 {[%clk 0:00:20.4]} 48. Kh2 {[%clk 0:00:03.3]} 48... a1=Q
{[%clk 0:00:21.3]} 49. Qxb6 {[%clk 0:00:03.1]} 49... Qxf4# {[%clk 0:00:21]} 0-1